[Event "Early-Titled-Tuesday-Blitz-February-20-2024"]
[Site "Chess.com"]
[Date "2024.02.20"]
[Round "2"]
[White "Joachim100x"]
[Black "Zorbos"]
[Result "1/2-1/2"]
[WhiteElo "2206"]
[BlackElo "2471"]
[TimeControl "180+1"]
[EndTime "8:14:19 PST"]
[Termination "Game drawn by repetition"]

1. e4 {[%clk 0:03:00.9]} 1... e5 {[%clk 0:02:58.1]} 2. Nf3 {[%clk 0:03:00.9]}
2... Nc6 {[%clk 0:02:56.9]} 3. Nc3 {[%clk 0:03:01.1]} 3... Nf6 {[%clk
0:02:56.1]} 4. d4 {[%clk 0:03:01.3]} 4... Bb4 {[%clk 0:02:55.8]} 5. Nxe5 {[%clk
0:03:00]} 5... Nxe4 {[%clk 0:02:53.6]} 6. Qd3 {[%clk 0:02:49.1]} 6... d5 {[%clk
0:02:47.9]} 7. Nxc6 {[%clk 0:02:45.3]} 7... bxc6 {[%clk 0:02:48.8]} 8. Bd2
{[%clk 0:02:45.6]} 8... Nxd2 {[%clk 0:02:47.2]} 9. Qxd2 {[%clk 0:02:45.4]} 9...
O-O {[%clk 0:02:48.1]} 10. Be2 {[%clk 0:02:43.4]} 10... c5 {[%clk 0:02:48.1]}
11. O-O {[%clk 0:02:40.2]} 11... Re8 {[%clk 0:02:41]} 12. Bf3 {[%clk 0:02:39.8]}
12... c6 {[%clk 0:02:37.7]} 13. Rfe1 {[%clk 0:02:39.8]} 13... cxd4 {[%clk
0:02:35.2]} 14. Qxd4 {[%clk 0:02:39.7]} 14... Be7 {[%clk 0:02:35.3]} 15. Qd3
{[%clk 0:02:33.3]} 15... Be6 {[%clk 0:02:34.4]} 16. Ne2 {[%clk 0:02:32.2]} 16...
Bf6 {[%clk 0:02:34.5]} 17. Nd4 {[%clk 0:02:30.3]} 17... Qb6 {[%clk 0:02:30.8]}
18. Nxe6 {[%clk 0:02:26.9]} 18... fxe6 {[%clk 0:02:31.7]} 19. Rab1 {[%clk
0:02:26.8]} 19... a5 {[%clk 0:02:27.8]} 20. c4 {[%clk 0:02:24.8]} 20... a4
{[%clk 0:02:25.8]} 21. cxd5 {[%clk 0:02:18.4]} 21... exd5 {[%clk 0:02:26.7]} 22.
b3 {[%clk 0:02:15.8]} 22... axb3 {[%clk 0:02:24.7]} 23. axb3 {[%clk 0:02:15.1]}
23... Qb4 {[%clk 0:02:22.3]} 24. Rxe8+ {[%clk 0:02:07.7]} 24... Rxe8 {[%clk
0:02:23.2]} 25. g3 {[%clk 0:02:08.3]} 25... Qd4 {[%clk 0:02:17.5]} 26. Qxd4
{[%clk 0:02:02.9]} 26... Bxd4 {[%clk 0:02:18.4]} 27. Rc1 {[%clk 0:02:03.3]}
27... Re6 {[%clk 0:02:17.3]} 28. Rxc6 {[%clk 0:02:01]} 28... Rxc6 {[%clk
0:02:09.2]} 29. Bxd5+ {[%clk 0:02:00.9]} 29... Kf8 {[%clk 0:02:09.7]} 30. Bxc6
{[%clk 0:02:01]} 30... Ke7 {[%clk 0:02:10.6]} 31. Bd5 {[%clk 0:02:00.1]} 31...
Kd6 {[%clk 0:02:10.8]} 32. Bc4 {[%clk 0:02:00.5]} 32... Ke5 {[%clk 0:02:10.6]}
33. Kg2 {[%clk 0:02:00.4]} 33... Bc5 {[%clk 0:02:10.9]} 34. f4+ {[%clk
0:01:59.8]} 34... Ke4 {[%clk 0:02:10.6]} 35. Bg8 {[%clk 0:01:54.8]} 35... h6
{[%clk 0:02:08.5]} 36. h3 {[%clk 0:01:54.2]} 36... Ke3 {[%clk 0:02:06.9]} 37. f5
{[%clk 0:01:53.6]} 37... Bd6 {[%clk 0:02:07]} 38. g4 {[%clk 0:01:53.1]} 38...
Be5 {[%clk 0:02:07.4]} 39. Be6 {[%clk 0:01:53.1]} 39... Bd6 {[%clk 0:02:07.9]}
40. h4 {[%clk 0:01:52.8]} 40... Kf4 {[%clk 0:02:06.1]} 41. Kh3 {[%clk
0:01:53.1]} 41... Be5 {[%clk 0:02:06.7]} 42. Bc4 {[%clk 0:01:52.2]} 42... Bd6
{[%clk 0:02:07.2]} 43. Be6 {[%clk 0:01:50.3]} 43... Be7 {[%clk 0:02:07.7]} 44.
Bc4 {[%clk 0:01:50.1]} 44... Bd6 {[%clk 0:02:08.3]} 45. Be6 {[%clk 0:01:50.3]}
1/2-1/2

[Event "Early-Titled-Tuesday-Blitz-February-20-2024"]
[Site "Chess.com"]
[Date "2024.02.20"]
[Round "2"]
[White "Ariadna_Atreides"]
[Black "Predo63"]
[Result "1/2-1/2"]
[WhiteElo "2162"]
[BlackElo "2548"]
[TimeControl "180+1"]
[EndTime "8:14:24 PST"]
[Termination "Game drawn by repetition"]

1. d4 {[%clk 0:03:00.9]} 1... d5 {[%clk 0:02:59.7]} 2. Nf3 {[%clk 0:03:00.5]}
2... c6 {[%clk 0:02:59.7]} 3. c4 {[%clk 0:02:58.5]} 3... Nf6 {[%clk 0:03:00.6]}
4. Nbd2 {[%clk 0:02:58.6]} 4... Bf5 {[%clk 0:02:59.3]} 5. Nh4 {[%clk 0:02:58.6]}
5... Bg6 {[%clk 0:02:59.1]} 6. Qb3 {[%clk 0:02:58.7]} 6... Qd7 {[%clk
0:02:56.2]} 7. Nxg6 {[%clk 0:02:55.3]} 7... hxg6 {[%clk 0:02:55.8]} 8. e3 {[%clk
0:02:54.7]} 8... e6 {[%clk 0:02:55.9]} 9. Bd3 {[%clk 0:02:53.8]} 9... Qc7 {[%clk
0:02:54.5]} 10. h3 {[%clk 0:02:52.7]} 10... Nbd7 {[%clk 0:02:54.2]} 11. a3
{[%clk 0:02:49.3]} 11... Qb6 {[%clk 0:02:53.6]} 12. Qc2 {[%clk 0:02:44]} 12...
a6 {[%clk 0:02:53.1]} 13. Nf3 {[%clk 0:02:23.4]} 13... Be7 {[%clk 0:02:52.3]}
14. Bd2 {[%clk 0:02:22.5]} 14... a5 {[%clk 0:02:45.2]} 15. cxd5 {[%clk
0:02:06.9]} 15... exd5 {[%clk 0:02:43.1]} 16. Bc3 {[%clk 0:01:59.2]} 16... a4
{[%clk 0:02:41.5]} 17. Ne5 {[%clk 0:01:57.7]} 17... Bd6 {[%clk 0:02:37.3]} 18.
Bxg6 {[%clk 0:01:46.6]} 18... Bxe5 {[%clk 0:02:20.2]} 19. dxe5 {[%clk
0:01:43.1]} 19... fxg6 {[%clk 0:02:15.7]} 20. Qxg6+ {[%clk 0:01:38.1]} 20... Kd8
{[%clk 0:02:15.1]} 21. exf6 {[%clk 0:01:37.6]} 21... gxf6 {[%clk 0:02:14.1]} 22.
Bxf6+ {[%clk 0:01:23.9]} 22... Nxf6 {[%clk 0:02:13.5]} 23. Qxf6+ {[%clk
0:01:24]} 23... Kd7 {[%clk 0:02:14.1]} 24. Qg7+ {[%clk 0:01:21.7]} 24... Kd6
{[%clk 0:02:14.3]} 25. Qf6+ {[%clk 0:00:53]} 25... Kd7 {[%clk 0:02:14.4]} 26.
Qg7+ {[%clk 0:00:53.1]} 26... Kd6 {[%clk 0:02:14.9]} 27. Qf6+ {[%clk 0:00:53.4]}
27... Kd7 {[%clk 0:02:15.3]} 1/2-1/2

[Event "Early-Titled-Tuesday-Blitz-February-20-2024"]
[Site "Chess.com"]
[Date "2024.02.20"]
[Round "2"]
[White "Khromkin"]
[Black "ImportedItalianMaple"]
[Result "1-0"]
[WhiteElo "2334"]
[BlackElo "2522"]
[TimeControl "180+1"]
[EndTime "8:14:25 PST"]
[Termination "Khromkin won by resignation"]

1. d4 {[%clk 0:02:59.5]} 1... g6 {[%clk 0:02:59.5]} 2. c4 {[%clk 0:02:56.6]}
2... Bg7 {[%clk 0:02:59.9]} 3. Nf3 {[%clk 0:02:55.7]} 3... d6 {[%clk 0:02:56.5]}
4. Nc3 {[%clk 0:02:56.1]} 4... Nc6 {[%clk 0:02:50.7]} 5. g3 {[%clk 0:02:56.9]}
5... e5 {[%clk 0:02:50.5]} 6. dxe5 {[%clk 0:02:53.8]} 6... Nxe5 {[%clk
0:02:50.5]} 7. Nxe5 {[%clk 0:02:53.2]} 7... dxe5 {[%clk 0:02:49.4]} 8. Qxd8+
{[%clk 0:02:53.3]} 8... Kxd8 {[%clk 0:02:49.9]} 9. Bg5+ {[%clk 0:02:53.4]} 9...
f6 {[%clk 0:02:49]} 10. Rd1+ {[%clk 0:02:41]} 10... Bd7 {[%clk 0:02:28.6]} 11.
Bh3 {[%clk 0:02:39.4]} 11... Ke8 {[%clk 0:01:55.9]} 12. Rxd7 {[%clk 0:02:18.7]}
12... Ne7 {[%clk 0:01:56.3]} 13. Nd5 {[%clk 0:02:11.3]} 13... Nxd5 {[%clk
0:01:47.3]} 14. cxd5 {[%clk 0:02:10.7]} 14... Bf8 {[%clk 0:01:43.9]} 15. Bxf6
{[%clk 0:02:06.4]} 15... Bb4+ {[%clk 0:01:44.7]} 16. Kf1 {[%clk 0:01:59.5]}
16... Rf8 {[%clk 0:01:45.6]} 17. Bxe5 {[%clk 0:01:51.9]} 17... Bc5 {[%clk
0:01:45.9]} 18. f3 {[%clk 0:01:41.9]} 18... Rd8 {[%clk 0:01:44.6]} 19. Rxd8+
{[%clk 0:01:37.7]} 19... Kxd8 {[%clk 0:01:45.5]} 20. Kg2 {[%clk 0:01:35]} 20...
Re8 {[%clk 0:01:45.5]} 21. f4 {[%clk 0:01:32.4]} 21... Bd6 {[%clk 0:01:45]} 22.
Bxd6 {[%clk 0:01:29.5]} 22... cxd6 {[%clk 0:01:45.9]} 23. Be6 {[%clk 0:01:26.5]}
23... Re7 {[%clk 0:01:44.7]} 24. Rc1 {[%clk 0:01:25.6]} 1-0

[Event "Early-Titled-Tuesday-Blitz-February-20-2024"]
[Site "Chess.com"]
[Date "2024.02.20"]
[Round "2"]
[White "EdmundPlayer"]
[Black "Actuary44"]
[Result "0-1"]
[WhiteElo "2295"]
[BlackElo "2529"]
[TimeControl "180+1"]
[EndTime "8:14:40 PST"]
[Termination "Actuary44 won on time"]

1. Nf3 {[%clk 0:03:00.9]} 1... d6 {[%clk 0:02:59.8]} 2. c4 {[%clk 0:02:56.4]}
2... e5 {[%clk 0:02:59.2]} 3. Nc3 {[%clk 0:02:55.7]} 3... f5 {[%clk 0:02:59.2]}
4. g3 {[%clk 0:02:49.1]} 4... g6 {[%clk 0:02:59.3]} 5. Bg2 {[%clk 0:02:48.7]}
5... Bg7 {[%clk 0:02:59.9]} 6. O-O {[%clk 0:02:12.7]} 6... Ne7 {[%clk
0:02:57.8]} 7. d4 {[%clk 0:02:09.4]} 7... e4 {[%clk 0:02:57.7]} 8. Ne1 {[%clk
0:02:08.7]} 8... Nbc6 {[%clk 0:02:57.1]} 9. Nc2 {[%clk 0:01:58]} 9... O-O {[%clk
0:02:55.4]} 10. Bf4 {[%clk 0:01:16.7]} 10... h6 {[%clk 0:02:51.9]} 11. h4 {[%clk
0:01:16.1]} 11... Kh7 {[%clk 0:02:45.6]} 12. Qd2 {[%clk 0:00:50.1]} 12... Rf7
{[%clk 0:02:44.1]} 13. Rad1 {[%clk 0:00:40.1]} 13... d5 {[%clk 0:02:44.2]} 14.
b3 {[%clk 0:00:31.3]} 14... Be6 {[%clk 0:02:39.2]} 15. Ne3 {[%clk 0:00:26.2]}
15... Qd7 {[%clk 0:02:27.9]} 16. cxd5 {[%clk 0:00:13.2]} 16... Nxd5 {[%clk
0:02:28.8]} 17. Nexd5 {[%clk 0:00:13.2]} 17... Bxd5 {[%clk 0:02:29.7]} 18. Nxd5
{[%clk 0:00:08.6]} 18... Qxd5 {[%clk 0:02:30.6]} 0-1

[Event "Early-Titled-Tuesday-Blitz-February-20-2024"]
[Site "Chess.com"]
[Date "2024.02.20"]
[Round "2"]
[White "Shuvalov"]
[Black "erugee"]
[Result "1-0"]
[WhiteElo "2541"]
[BlackElo "2322"]
[TimeControl "180+1"]
[EndTime "8:14:50 PST"]
[Termination "Shuvalov won by resignation"]

1. d4 {[%clk 0:02:59.8]} 1... d6 {[%clk 0:02:58.3]} 2. Nf3 {[%clk 0:02:59.3]}
2... Nf6 {[%clk 0:02:57.3]} 3. c4 {[%clk 0:02:59.3]} 3... g6 {[%clk 0:02:57.8]}
4. Nc3 {[%clk 0:02:59.5]} 4... Bg7 {[%clk 0:02:58.3]} 5. e4 {[%clk 0:03:00.2]}
5... c6 {[%clk 0:02:58.8]} 6. Be2 {[%clk 0:03:00.2]} 6... a6 {[%clk 0:02:59.4]}
7. O-O {[%clk 0:02:58.9]} 7... b5 {[%clk 0:02:59.9]} 8. a3 {[%clk 0:02:57.5]}
8... O-O {[%clk 0:02:56.7]} 9. Be3 {[%clk 0:02:52.9]} 9... Nbd7 {[%clk
0:02:55.5]} 10. Qd2 {[%clk 0:02:51.6]} 10... bxc4 {[%clk 0:02:55.1]} 11. Bxc4
{[%clk 0:02:51.3]} 11... d5 {[%clk 0:02:55]} 12. Bd3 {[%clk 0:02:47.5]} 12...
Nb6 {[%clk 0:02:51.9]} 13. e5 {[%clk 0:02:43.7]} 13... Ne8 {[%clk 0:02:40.1]}
14. h3 {[%clk 0:02:36.6]} 14... Nc7 {[%clk 0:02:35.3]} 15. Rac1 {[%clk
0:02:30.6]} 15... Bf5 {[%clk 0:02:24.6]} 16. Bxf5 {[%clk 0:02:29.1]} 16... gxf5
{[%clk 0:02:24.9]} 17. Ne2 {[%clk 0:02:29.3]} 17... Nc4 {[%clk 0:02:22.5]} 18.
Qc2 {[%clk 0:02:24.5]} 18... Ne6 {[%clk 0:01:39.3]} 19. b3 {[%clk 0:02:19.1]}
19... Nxa3 {[%clk 0:01:27.1]} 20. Qxf5 {[%clk 0:02:16]} 20... Nb5 {[%clk
0:01:23.5]} 21. Rxc6 {[%clk 0:02:06.8]} 21... Qd7 {[%clk 0:01:19.1]} 22. Rfc1
{[%clk 0:02:06.2]} 22... Rac8 {[%clk 0:01:13.9]} 23. Ng5 {[%clk 0:01:57.3]}
23... Rfd8 {[%clk 0:00:51.5]} 24. Qxf7+ {[%clk 0:01:54.2]} 24... Kh8 {[%clk
0:00:49.6]} 25. Nxe6 {[%clk 0:01:51.1]} 1-0

[Event "Early-Titled-Tuesday-Blitz-February-20-2024"]
[Site "Chess.com"]
[Date "2024.02.20"]
[Round "2"]
[White "le-castor-faineant"]
[Black "Barmen_EV"]
[Result "0-1"]
[WhiteElo "2269"]
[BlackElo "2519"]
[TimeControl "180+1"]
[EndTime "8:14:52 PST"]
[Termination "Barmen_EV won by resignation"]

1. e4 {[%clk 0:02:26.5]} 1... c5 {[%clk 0:02:59.1]} 2. Nf3 {[%clk 0:02:25.3]}
2... Nc6 {[%clk 0:02:58.7]} 3. g3 {[%clk 0:02:25.5]} 3... g6 {[%clk 0:02:58.2]}
4. Bg2 {[%clk 0:02:25.5]} 4... Bg7 {[%clk 0:02:58.4]} 5. O-O {[%clk 0:02:26]}
5... d6 {[%clk 0:02:56.2]} 6. c3 {[%clk 0:02:26]} 6... e5 {[%clk 0:02:45.7]} 7.
h3 {[%clk 0:02:23.7]} 7... Nge7 {[%clk 0:02:45.2]} 8. d3 {[%clk 0:02:24.1]} 8...
O-O {[%clk 0:02:45]} 9. Be3 {[%clk 0:02:24.6]} 9... f5 {[%clk 0:02:45]} 10. Na3
{[%clk 0:02:16.5]} 10... f4 {[%clk 0:02:44.4]} 11. Bd2 {[%clk 0:02:09.1]} 11...
Be6 {[%clk 0:02:43.4]} 12. Nc4 {[%clk 0:02:04.8]} 12... b5 {[%clk 0:02:40.7]}
13. Na3 {[%clk 0:02:03.8]} 13... a6 {[%clk 0:02:41.4]} 14. Kh2 {[%clk
0:01:59.5]} 14... Qd7 {[%clk 0:02:39.9]} 15. Ng5 {[%clk 0:01:56.3]} 15... h6
{[%clk 0:02:39.8]} 16. Nxe6 {[%clk 0:01:55.8]} 16... Qxe6 {[%clk 0:02:40.7]} 17.
g4 {[%clk 0:01:54.6]} 17... g5 {[%clk 0:02:38]} 18. f3 {[%clk 0:01:53.4]} 18...
Ng6 {[%clk 0:02:37.7]} 19. Be1 {[%clk 0:01:52.6]} 19... Rad8 {[%clk 0:02:35.3]}
20. c4 {[%clk 0:01:51.9]} 20... b4 {[%clk 0:02:33.3]} 21. Nc2 {[%clk 0:01:49.6]}
21... a5 {[%clk 0:02:33.3]} 22. a4 {[%clk 0:01:48.7]} 22... h5 {[%clk
0:02:29.4]} 23. b3 {[%clk 0:01:47.6]} 23... hxg4 {[%clk 0:02:29]} 24. fxg4
{[%clk 0:01:11.2]} 24... Nd4 {[%clk 0:02:28.1]} 25. Nxd4 {[%clk 0:01:10.9]}
25... exd4 {[%clk 0:02:29]} 26. Rf3 {[%clk 0:01:03.4]} 26... Ne5 {[%clk
0:02:28.5]} 27. Ra2 {[%clk 0:01:01.5]} 27... Bf6 {[%clk 0:02:19.6]} 28. Kg1
{[%clk 0:00:59.1]} 28... Kg7 {[%clk 0:02:14.6]} 29. Kf2 {[%clk 0:00:59.1]} 29...
Nxg4+ {[%clk 0:02:11.4]} 30. hxg4 {[%clk 0:00:58.8]} 30... Qxg4 {[%clk
0:02:12.3]} 31. Rh3 {[%clk 0:00:55]} 31... Qxd1 {[%clk 0:02:11.6]} 0-1

[Event "Early-Titled-Tuesday-Blitz-February-20-2024"]
[Site "Chess.com"]
[Date "2024.02.20"]
[Round "2"]
[White "Genghis_K"]
[Black "Yeritsyaan"]
[Result "1-0"]
[WhiteElo "2922"]
[BlackElo "2611"]
[TimeControl "180+1"]
[EndTime "8:14:55 PST"]
[Termination "Genghis_K won by resignation"]

1. e4 {[%clk 0:03:00.9]} 1... e5 {[%clk 0:02:53.2]} 2. Nf3 {[%clk 0:03:01.3]}
2... Nc6 {[%clk 0:02:49.4]} 3. d4 {[%clk 0:03:01.9]} 3... exd4 {[%clk
0:02:49.2]} 4. Nxd4 {[%clk 0:03:02.8]} 4... Nf6 {[%clk 0:02:49.4]} 5. Nxc6
{[%clk 0:03:03.4]} 5... bxc6 {[%clk 0:02:49.3]} 6. Bd3 {[%clk 0:03:04.2]} 6...
d5 {[%clk 0:02:47.1]} 7. exd5 {[%clk 0:03:05.1]} 7... cxd5 {[%clk 0:02:46.5]} 8.
O-O {[%clk 0:03:05.8]} 8... Be7 {[%clk 0:02:45.6]} 9. c4 {[%clk 0:03:06.6]} 9...
O-O {[%clk 0:02:43.1]} 10. Nc3 {[%clk 0:03:07.2]} 10... d4 {[%clk 0:02:37.4]}
11. Ne4 {[%clk 0:03:07.4]} 11... Rb8 {[%clk 0:02:31.4]} 12. Nxf6+ {[%clk
0:03:06.5]} 12... Bxf6 {[%clk 0:02:32]} 13. b4 {[%clk 0:03:07.2]} 13... c5
{[%clk 0:02:23.8]} 14. b5 {[%clk 0:03:05.7]} 14... Be6 {[%clk 0:02:20.5]} 15.
Bf4 {[%clk 0:03:05.1]} 15... Rc8 {[%clk 0:02:16.6]} 16. a4 {[%clk 0:03:05.3]}
16... Qd7 {[%clk 0:02:10.8]} 17. Re1 {[%clk 0:03:04.7]} 17... Rfe8 {[%clk
0:02:10.4]} 18. h3 {[%clk 0:03:02.4]} 18... h6 {[%clk 0:02:01.1]} 19. Qc2 {[%clk
0:02:56.9]} 19... Bg5 {[%clk 0:01:51.1]} 20. Bg3 {[%clk 0:02:55.2]} 20... h5
{[%clk 0:01:40]} 21. a5 {[%clk 0:02:53.7]} 21... h4 {[%clk 0:01:39.2]} 22. Bh2
{[%clk 0:02:52.3]} 22... Re7 {[%clk 0:01:28.3]} 23. b6 {[%clk 0:02:50.6]} 23...
axb6 {[%clk 0:01:29.2]} 24. axb6 {[%clk 0:02:51.5]} 24... Qb7 {[%clk 0:01:23.9]}
25. Ra7 {[%clk 0:02:38]} 25... Qxb6 {[%clk 0:01:23.1]} 26. Rxe7 {[%clk 0:02:27]}
26... Bxe7 {[%clk 0:01:24]} 27. Qe2 {[%clk 0:02:26.4]} 27... Bf6 {[%clk
0:01:16.6]} 28. Qh5 {[%clk 0:02:25.4]} 28... Kf8 {[%clk 0:00:47.3]} 29. Qh8+
{[%clk 0:02:24.4]} 29... Ke7 {[%clk 0:00:46.2]} 30. Qxc8 {[%clk 0:02:25.1]}
30... Qb4 {[%clk 0:00:36]} 31. Qc7+ {[%clk 0:02:20.6]} 31... Ke8 {[%clk
0:00:36.6]} 32. Rb1 {[%clk 0:02:19.6]} 32... Bd8 {[%clk 0:00:34.1]} 33. Qc6+
{[%clk 0:02:18.3]} 1-0

[Event "Early-Titled-Tuesday-Blitz-February-20-2024"]
[Site "Chess.com"]
[Date "2024.02.20"]
[Round "2"]
[White "Leonid_Starozhilov"]
[Black "HanSchut"]
[Result "1-0"]
[WhiteElo "2699"]
[BlackElo "2276"]
[TimeControl "180+1"]
[EndTime "8:14:56 PST"]
[Termination "Leonid_Starozhilov won by resignation"]

1. e4 {[%clk 0:03:00.9]} 1... c5 {[%clk 0:02:59.4]} 2. Nf3 {[%clk 0:03:00.6]}
2... d6 {[%clk 0:02:59.9]} 3. Bb5+ {[%clk 0:03:00]} 3... Bd7 {[%clk 0:02:59.7]}
4. c4 {[%clk 0:03:00.1]} 4... g6 {[%clk 0:02:59.1]} 5. Nc3 {[%clk 0:03:00.1]}
5... Bg7 {[%clk 0:02:59.7]} 6. O-O {[%clk 0:03:00.6]} 6... Nf6 {[%clk
0:02:59.6]} 7. d4 {[%clk 0:03:00.8]} 7... cxd4 {[%clk 0:02:59.5]} 8. Nxd4 {[%clk
0:03:01.5]} 8... O-O {[%clk 0:02:57.2]} 9. h3 {[%clk 0:03:00.7]} 9... a6 {[%clk
0:02:56]} 10. Bxd7 {[%clk 0:02:59.7]} 10... Qxd7 {[%clk 0:02:56.9]} 11. Be3
{[%clk 0:02:59]} 11... Nc6 {[%clk 0:02:57.2]} 12. Rc1 {[%clk 0:02:56.8]} 12...
Rfc8 {[%clk 0:02:56.2]} 13. b3 {[%clk 0:02:52.4]} 13... Nxd4 {[%clk 0:02:48.8]}
14. Bxd4 {[%clk 0:02:51.9]} 14... b5 {[%clk 0:02:49.2]} 15. Bxf6 {[%clk
0:02:32.7]} 15... Bxf6 {[%clk 0:02:43]} 16. Nd5 {[%clk 0:02:32.1]} 16... Qc6
{[%clk 0:02:25.6]} 17. Qf3 {[%clk 0:02:15.2]} 17... Kg7 {[%clk 0:02:13.9]} 18.
Rfd1 {[%clk 0:01:58.6]} 18... bxc4 {[%clk 0:01:50.1]} 19. Rxc4 {[%clk
0:01:56.2]} 19... Qb7 {[%clk 0:01:40.4]} 20. Nxf6 {[%clk 0:01:53.4]} 20... exf6
{[%clk 0:01:36.4]} 21. Rxd6 {[%clk 0:01:53.6]} 21... Rxc4 {[%clk 0:01:30.8]} 22.
Qxf6+ {[%clk 0:01:53.3]} 22... Kg8 {[%clk 0:01:31.3]} 23. bxc4 {[%clk
0:01:53.6]} 23... Qb1+ {[%clk 0:01:27.2]} 24. Kh2 {[%clk 0:01:52.9]} 24... Qxa2
{[%clk 0:01:28.1]} 25. c5 {[%clk 0:01:40.5]} 25... a5 {[%clk 0:01:19.9]} 26. c6
{[%clk 0:01:40.4]} 26... Qc4 {[%clk 0:01:11.6]} 27. Rd8+ {[%clk 0:01:37.8]}
27... Rxd8 {[%clk 0:01:10.7]} 28. Qxd8+ {[%clk 0:01:38.7]} 28... Kg7 {[%clk
0:01:11.4]} 29. c7 {[%clk 0:01:39.3]} 29... Qxe4 {[%clk 0:01:08.7]} 30. c8=Q
{[%clk 0:01:37.7]} 30... Qf4+ {[%clk 0:01:08.7]} 31. Kg1 {[%clk 0:01:37.9]} 1-0

[Event "Early-Titled-Tuesday-Blitz-February-20-2024"]
[Site "Chess.com"]
[Date "2024.02.20"]
[Round "2"]
[White "VitaliyBernadskiy"]
[Black "KnobbedHornbill"]
[Result "1-0"]
[WhiteElo "2872"]
[BlackElo "2586"]
[TimeControl "180+1"]
[EndTime "8:14:57 PST"]
[Termination "VitaliyBernadskiy won by resignation"]

1. c4 {[%clk 0:03:00.1]} 1... Nf6 {[%clk 0:02:59.7]} 2. Nc3 {[%clk 0:02:59.9]}
2... e5 {[%clk 0:02:59.9]} 3. Nf3 {[%clk 0:02:58.4]} 3... Nc6 {[%clk 0:02:59.6]}
4. e3 {[%clk 0:02:58.2]} 4... d5 {[%clk 0:02:57.3]} 5. cxd5 {[%clk 0:02:58]}
5... Nxd5 {[%clk 0:02:58.2]} 6. Bb5 {[%clk 0:02:58.2]} 6... Nxc3 {[%clk
0:02:57.2]} 7. bxc3 {[%clk 0:02:59.1]} 7... Bd6 {[%clk 0:02:56.6]} 8. d4 {[%clk
0:02:52.7]} 8... e4 {[%clk 0:02:56.4]} 9. Nd2 {[%clk 0:02:51.4]} 9... Qe7 {[%clk
0:02:52.8]} 10. d5 {[%clk 0:02:29.3]} 10... a6 {[%clk 0:02:51.3]} 11. Qa4 {[%clk
0:02:28.3]} 11... Rb8 {[%clk 0:02:11]} 12. Be2 {[%clk 0:02:27.5]} 12... b5
{[%clk 0:02:09.6]} 13. Qxe4 {[%clk 0:02:27.2]} 13... Qxe4 {[%clk 0:02:09.7]} 14.
Nxe4 {[%clk 0:02:28.1]} 14... Ne7 {[%clk 0:02:09.8]} 15. Nxd6+ {[%clk
0:02:27.2]} 15... cxd6 {[%clk 0:02:10.7]} 16. e4 {[%clk 0:02:17.6]} 16... f5
{[%clk 0:02:05.5]} 17. f3 {[%clk 0:02:13.5]} 17... fxe4 {[%clk 0:02:03.3]} 18.
fxe4 {[%clk 0:02:14.4]} 18... O-O {[%clk 0:02:03.3]} 19. Ba3 {[%clk 0:02:13.8]}
19... Rb6 {[%clk 0:01:59.8]} 20. Rf1 {[%clk 0:01:46.9]} 20... Rxf1+ {[%clk
0:01:58.5]} 21. Kxf1 {[%clk 0:01:42.9]} 21... Ng6 {[%clk 0:01:59.4]} 22. Kf2
{[%clk 0:01:40]} 22... Ne5 {[%clk 0:01:57.6]} 23. Bb4 {[%clk 0:01:36.6]} 23...
Kf7 {[%clk 0:01:52]} 24. Ke3 {[%clk 0:01:36]} 24... Ke7 {[%clk 0:01:52.2]} 25.
a4 {[%clk 0:01:26.5]} 25... Bd7 {[%clk 0:01:41.2]} 26. axb5 {[%clk 0:01:18.6]}
26... axb5 {[%clk 0:01:40.8]} 27. Kd4 {[%clk 0:01:13.2]} 27... Rb7 {[%clk
0:01:39.9]} 28. Ra6 {[%clk 0:01:12.3]} 28... Nf7 {[%clk 0:01:36.3]} 29. e5
{[%clk 0:01:11.6]} 1-0

[Event "Early-Titled-Tuesday-Blitz-February-20-2024"]
[Site "Chess.com"]
[Date "2024.02.20"]
[Round "2"]
[White "Rurep26"]
[Black "Kostukov_Alex"]
[Result "1-0"]
[WhiteElo "2730"]
[BlackElo "2356"]
[TimeControl "180+1"]
[EndTime "8:15:05 PST"]
[Termination "Rurep26 won by resignation"]

1. d4 {[%clk 0:03:00.9]} 1... g6 {[%clk 0:02:55.4]} 2. e4 {[%clk 0:02:58.6]}
2... c5 {[%clk 0:02:52.3]} 3. d5 {[%clk 0:02:56.9]} 3... Bg7 {[%clk 0:02:51.6]}
4. Nc3 {[%clk 0:02:57.4]} 4... d6 {[%clk 0:02:52.1]} 5. Bb5+ {[%clk 0:02:56]}
5... Nd7 {[%clk 0:02:44.1]} 6. a4 {[%clk 0:02:55.8]} 6... Nf6 {[%clk 0:02:42.7]}
7. Nf3 {[%clk 0:02:54.8]} 7... O-O {[%clk 0:02:42.3]} 8. O-O {[%clk 0:02:54.4]}
8... Ng4 {[%clk 0:02:33.1]} 9. Re1 {[%clk 0:02:49.9]} 9... a6 {[%clk 0:02:18.8]}
10. Bf1 {[%clk 0:02:47]} 10... h6 {[%clk 0:02:15.4]} 11. Bd2 {[%clk 0:02:41.2]}
11... Rb8 {[%clk 0:02:12.2]} 12. Qc1 {[%clk 0:02:41]} 12... Kh7 {[%clk
0:02:07.7]} 13. h3 {[%clk 0:02:39.6]} 13... Nge5 {[%clk 0:02:03]} 14. Nh2 {[%clk
0:02:38.7]} 14... g5 {[%clk 0:01:50.2]} 15. h4 {[%clk 0:02:25.5]} 15... f6
{[%clk 0:01:36.4]} 16. h5 {[%clk 0:02:09.4]} 16... Nb6 {[%clk 0:01:30.5]} 17. b3
{[%clk 0:02:04.5]} 17... Bd7 {[%clk 0:01:24.3]} 18. g3 {[%clk 0:01:55.9]} 18...
Na8 {[%clk 0:01:19.2]} 19. Be2 {[%clk 0:01:48.2]} 19... Nc7 {[%clk 0:01:16.4]}
20. f4 {[%clk 0:01:48.1]} 20... Nf7 {[%clk 0:01:15.4]} 21. a5 {[%clk 0:01:46.2]}
21... Nb5 {[%clk 0:01:13.3]} 22. Nxb5 {[%clk 0:01:41]} 22... axb5 {[%clk
0:01:12.1]} 23. Bd3 {[%clk 0:01:32.3]} 23... b4 {[%clk 0:01:11.7]} 24. e5+
{[%clk 0:01:32.2]} 24... Kh8 {[%clk 0:00:59.4]} 25. e6 {[%clk 0:01:31]} 1-0